[Event "Late-Titled-Tuesday-Blitz-May-14-2024"]
[Site "Chess.com"]
[Date "2024.05.14"]
[Round "11"]
[White "MarkusRagger"]
[Black "DrVelja"]
[Result "0-1"]
[WhiteElo "2817"]
[BlackElo "2921"]
[TimeControl "180+1"]
[EndTime "16:04:50 PDT"]
[Termination "DrVelja won by resignation"]

1. d4 {[%clk 0:03:00.4]} 1... Nf6 {[%clk 0:02:59.2]} 2. c4 {[%clk 0:03:00.1]}
2... g6 {[%clk 0:02:59.7]} 3. Nc3 {[%clk 0:02:59.6]} 3... Bg7 {[%clk 0:03:00.4]}
4. e4 {[%clk 0:02:59.8]} 4... d6 {[%clk 0:03:01.3]} 5. Nf3 {[%clk 0:02:59.8]}
5... Bg4 {[%clk 0:02:56.5]} 6. Be2 {[%clk 0:02:55.5]} 6... Bxf3 {[%clk
0:02:56.3]} 7. gxf3 {[%clk 0:02:45.3]} 7... Nc6 {[%clk 0:02:56.2]} 8. Be3 {[%clk
0:02:44.8]} 8... e5 {[%clk 0:02:55]} 9. d5 {[%clk 0:02:44.7]} 9... Nd4 {[%clk
0:02:54.2]} 10. Bxd4 {[%clk 0:02:38.6]} 10... exd4 {[%clk 0:02:55.1]} 11. Qxd4
{[%clk 0:02:38.7]} 11... O-O {[%clk 0:02:55.6]} 12. Qd2 {[%clk 0:02:35.3]} 12...
Re8 {[%clk 0:02:55.8]} 13. O-O-O {[%clk 0:02:19.6]} 13... c6 {[%clk 0:02:52]}
14. dxc6 {[%clk 0:02:08.3]} 14... bxc6 {[%clk 0:02:52]} 15. Qxd6 {[%clk
0:02:07.5]} 15... Qb6 {[%clk 0:02:42.1]} 16. c5 {[%clk 0:01:53.8]} 16... Qb7
{[%clk 0:02:42]} 17. Bc4 {[%clk 0:01:45.5]} 17... Re7 {[%clk 0:01:57]} 18. Kc2
{[%clk 0:01:06.7]} 18... Rd7 {[%clk 0:01:43.5]} 19. Qf4 {[%clk 0:01:01.4]} 19...
Re7 {[%clk 0:00:58.3]} 20. Rd6 {[%clk 0:00:55.3]} 20... Nd7 {[%clk 0:00:58.9]}
21. Rhd1 {[%clk 0:00:41.2]} 21... Be5 {[%clk 0:00:47.6]} 22. Qe3 {[%clk
0:00:39.8]} 22... Bxd6 {[%clk 0:00:45.7]} 23. cxd6 {[%clk 0:00:40.1]} 23... Ree8
{[%clk 0:00:45.4]} 24. f4 {[%clk 0:00:39.4]} 24... Rab8 {[%clk 0:00:42.3]} 25.
b3 {[%clk 0:00:37.1]} 25... Nb6 {[%clk 0:00:37.9]} 26. Qc5 {[%clk 0:00:31.2]}
26... Qd7 {[%clk 0:00:27.5]} 27. Rd2 {[%clk 0:00:23]} 27... a5 {[%clk
0:00:21.2]} 28. Qd4 {[%clk 0:00:16.1]} 28... a4 {[%clk 0:00:11.6]} 29. e5 {[%clk
0:00:16.2]} 29... axb3+ {[%clk 0:00:11.5]} 30. axb3 {[%clk 0:00:16.9]} 30...
Nxc4 {[%clk 0:00:06.8]} 31. Qxc4 {[%clk 0:00:16.4]} 31... Kg7 {[%clk 0:00:05.5]}
32. Ne4 {[%clk 0:00:16.2]} 32... Qf5 {[%clk 0:00:06.2]} 33. Kb2 {[%clk
0:00:15.3]} 33... Qxf4 {[%clk 0:00:05.3]} 34. d7 {[%clk 0:00:16]} 34... Qxe5+
{[%clk 0:00:05.5]} 35. Nc3 {[%clk 0:00:15.5]} 35... Red8 {[%clk 0:00:05.7]} 36.
Qxc6 {[%clk 0:00:15.7]} 36... Ra8 {[%clk 0:00:03.8]} 37. Qxa8 {[%clk 0:00:14.6]}
37... Rxa8 {[%clk 0:00:03.6]} 38. d8=Q {[%clk 0:00:15.5]} 38... Rxd8 {[%clk
0:00:04.4]} 39. Rxd8 {[%clk 0:00:15.6]} 39... Qxh2 {[%clk 0:00:05.3]} 40. Rd2
{[%clk 0:00:14.9]} 40... Qf4 {[%clk 0:00:05.6]} 41. Re2 {[%clk 0:00:14.4]} 41...
h5 {[%clk 0:00:06.2]} 42. f3 {[%clk 0:00:14.6]} 42... Qxf3 {[%clk 0:00:06.3]}
43. b4 {[%clk 0:00:14.8]} 43... h4 {[%clk 0:00:06.6]} 44. b5 {[%clk 0:00:15.4]}
44... h3 {[%clk 0:00:06.9]} 45. Kb3 {[%clk 0:00:13.4]} 45... Qf4 {[%clk
0:00:04.5]} 46. b6 {[%clk 0:00:13.2]} 46... h2 {[%clk 0:00:04.8]} 47. Re1 {[%clk
0:00:10.1]} 47... Qf3 {[%clk 0:00:05.2]} 48. Kb4 {[%clk 0:00:08.8]} 48... h1=Q
{[%clk 0:00:04.7]} 49. Rxh1 {[%clk 0:00:09.5]} 49... Qxh1 {[%clk 0:00:05.6]} 50.
Kc5 {[%clk 0:00:09.5]} 50... g5 {[%clk 0:00:04.8]} 51. Nd5 {[%clk 0:00:09.5]}
51... Qb1 {[%clk 0:00:04]} 52. Kc6 {[%clk 0:00:09.2]} 52... g4 {[%clk
0:00:02.8]} 53. b7 {[%clk 0:00:09.8]} 53... g3 {[%clk 0:00:03.4]} 54. Kc7 {[%clk
0:00:10.2]} 54... Qxb7+ {[%clk 0:00:03]} 55. Kxb7 {[%clk 0:00:09.6]} 55... g2
{[%clk 0:00:03.9]} 56. Ne3 {[%clk 0:00:08]} 56... g1=Q {[%clk 0:00:04.2]} 57.
Nf5+ {[%clk 0:00:08.9]} 57... Kf8 {[%clk 0:00:04.7]} 58. Nd6 {[%clk 0:00:08.7]}
58... Qh1+ {[%clk 0:00:05.3]} 59. Kc7 {[%clk 0:00:08.4]} 59... Qh5 {[%clk
0:00:06.2]} 60. Kd7 {[%clk 0:00:08.7]} 60... Qg6 {[%clk 0:00:06.6]} 61. Nc8
{[%clk 0:00:08.3]} 61... Qe6+ {[%clk 0:00:07]} 62. Kd8 {[%clk 0:00:08.8]} 62...
Qxc8+ {[%clk 0:00:07.3]} 63. Kxc8 {[%clk 0:00:09.1]} 63... f5 {[%clk 0:00:07.4]}
0-1

[Event "Late-Titled-Tuesday-Blitz-May-14-2024"]
[Site "Chess.com"]
[Date "2024.05.14"]
[Round "11"]
[White "tarno17"]
[Black "duone"]
[Result "1-0"]
[WhiteElo "2244"]
[BlackElo "2408"]
[TimeControl "180+1"]
[EndTime "16:04:50 PDT"]
[Termination "tarno17 won by checkmate"]

1. e4 {[%clk 0:03:00.9]} 1... c5 {[%clk 0:02:56.7]} 2. Nf3 {[%clk 0:02:58.6]}
2... e6 {[%clk 0:02:56.9]} 3. d3 {[%clk 0:02:54.2]} 3... Nc6 {[%clk 0:02:54.3]}
4. g3 {[%clk 0:02:54.3]} 4... d5 {[%clk 0:02:54.2]} 5. Nc3 {[%clk 0:02:39.5]}
5... Nf6 {[%clk 0:02:51.8]} 6. exd5 {[%clk 0:02:37.9]} 6... exd5 {[%clk
0:02:51.8]} 7. Bg2 {[%clk 0:02:37.9]} 7... Be7 {[%clk 0:02:52.1]} 8. O-O {[%clk
0:02:37.4]} 8... O-O {[%clk 0:02:52.7]} 9. h3 {[%clk 0:02:12]} 9... a6 {[%clk
0:02:51.9]} 10. g4 {[%clk 0:02:08.5]} 10... d4 {[%clk 0:02:39.8]} 11. Ne4 {[%clk
0:02:05.7]} 11... Nxe4 {[%clk 0:02:38.3]} 12. dxe4 {[%clk 0:02:05.9]} 12... Be6
{[%clk 0:02:38.8]} 13. Bf4 {[%clk 0:02:02.9]} 13... b5 {[%clk 0:02:34.9]} 14.
Bg3 {[%clk 0:01:39.2]} 14... Bd6 {[%clk 0:02:32.4]} 15. e5 {[%clk 0:01:38.3]}
15... Bc7 {[%clk 0:02:23.8]} 16. Nd2 {[%clk 0:01:25.2]} 16... Bd5 {[%clk
0:02:20.4]} 17. f4 {[%clk 0:01:22.1]} 17... f6 {[%clk 0:01:57.2]} 18. exf6
{[%clk 0:01:06.2]} 18... Rxf6 {[%clk 0:01:50.2]} 19. Ne4 {[%clk 0:01:06.5]}
19... Bxe4 {[%clk 0:01:43.2]} 20. Bxe4 {[%clk 0:01:06.2]} 20... Rb8 {[%clk
0:01:09.1]} 21. Bh4 {[%clk 0:01:04.5]} 21... Qd6 {[%clk 0:00:54.7]} 22. Bxf6
{[%clk 0:01:03.4]} 22... Qxf6 {[%clk 0:00:55.6]} 23. Bxc6 {[%clk 0:01:01.7]}
23... Qxc6 {[%clk 0:00:55.3]} 24. Qf3 {[%clk 0:01:02.4]} 24... Qd6 {[%clk
0:00:52.4]} 25. Rae1 {[%clk 0:01:01.8]} 25... Rf8 {[%clk 0:00:52.1]} 26. Re4
{[%clk 0:00:58.5]} 26... g5 {[%clk 0:00:49.9]} 27. Re5 {[%clk 0:00:34.3]} 27...
Qxe5 {[%clk 0:00:32.3]} 28. fxe5 {[%clk 0:00:34.1]} 28... Rxf3 {[%clk
0:00:32.4]} 29. Rxf3 {[%clk 0:00:35]} 29... Bxe5 {[%clk 0:00:32.3]} 30. Rf5
{[%clk 0:00:34.7]} 30... Bd6 {[%clk 0:00:28]} 31. Rxg5+ {[%clk 0:00:35]} 31...
Kf7 {[%clk 0:00:28.5]} 32. Rd5 {[%clk 0:00:34.8]} 32... Ke6 {[%clk 0:00:19.1]}
33. Rh5 {[%clk 0:00:34.9]} 33... c4 {[%clk 0:00:19.5]} 34. Kf2 {[%clk
0:00:34.4]} 34... b4 {[%clk 0:00:10.1]} 35. Ke2 {[%clk 0:00:33.8]} 35... a5
{[%clk 0:00:10.2]} 36. Rxh7 {[%clk 0:00:33.5]} 36... a4 {[%clk 0:00:10.6]} 37.
Rh6+ {[%clk 0:00:31.8]} 37... Kd5 {[%clk 0:00:10.6]} 38. h4 {[%clk 0:00:24.1]}
38... b3 {[%clk 0:00:06]} 39. axb3 {[%clk 0:00:21.9]} 39... c3 {[%clk
0:00:04.9]} 40. bxc3 {[%clk 0:00:17.1]} 40... a3 {[%clk 0:00:05.3]} 41. Rh5+
{[%clk 0:00:16.4]} 41... Be5 {[%clk 0:00:02.9]} 42. cxd4 {[%clk 0:00:14.3]}
42... Kxd4 {[%clk 0:00:01.3]} 43. Rh7 {[%clk 0:00:12.2]} 43... Kc3 {[%clk
0:00:01.4]} 44. Ra7 {[%clk 0:00:07.7]} 44... Kb2 {[%clk 0:00:01.7]} 45. c4
{[%clk 0:00:04]} 45... a2 {[%clk 0:00:00.7]} 46. c5 {[%clk 0:00:03]} 46... a1=Q
{[%clk 0:00:00.7]} 47. Rxa1 {[%clk 0:00:03.4]} 47... Kxa1 {[%clk 0:00:01.6]} 48.
c6 {[%clk 0:00:03]} 48... Kb2 {[%clk 0:00:02.5]} 49. g5 {[%clk 0:00:03.4]} 49...
Kxb3 {[%clk 0:00:03]} 50. g6 {[%clk 0:00:04]} 50... Kc4 {[%clk 0:00:03.2]} 51.
g7 {[%clk 0:00:04.5]} 51... Bxg7 {[%clk 0:00:03.4]} 52. c7 {[%clk 0:00:05]}
52... Kd5 {[%clk 0:00:04.2]} 53. c8=Q {[%clk 0:00:05.8]} 53... Ke5 {[%clk
0:00:04.1]} 54. Qg8 {[%clk 0:00:06.4]} 54... Bf6 {[%clk 0:00:03.9]} 55. h5
{[%clk 0:00:06.7]} 55... Kf5 {[%clk 0:00:04.8]} 56. Qg6+ {[%clk 0:00:06.8]}
56... Ke6 {[%clk 0:00:05]} 57. h6 {[%clk 0:00:07.4]} 57... Ke7 {[%clk
0:00:05.5]} 58. h7 {[%clk 0:00:07.9]} 58... Bh8 {[%clk 0:00:05.5]} 59. Qg8
{[%clk 0:00:07.6]} 59... Be5 {[%clk 0:00:05.8]} 60. h8=Q {[%clk 0:00:07.8]}
60... Bxh8 {[%clk 0:00:06.7]} 61. Qxh8 {[%clk 0:00:08.1]} 61... Ke6 {[%clk
0:00:07.3]} 62. Qh5 {[%clk 0:00:08.7]} 62... Kf6 {[%clk 0:00:07.3]} 63. Kf3
{[%clk 0:00:08.7]} 63... Kg7 {[%clk 0:00:08.2]} 64. Qf5 {[%clk 0:00:09]} 64...
Kh8 {[%clk 0:00:08.6]} 65. Qg5 {[%clk 0:00:09.3]} 65... Kh7 {[%clk 0:00:08.9]}
66. Kf4 {[%clk 0:00:10.1]} 66... Kh8 {[%clk 0:00:09.8]} 67. Kf5 {[%clk
0:00:10.8]} 67... Kh7 {[%clk 0:00:10.7]} 68. Kf6 {[%clk 0:00:11.4]} 68... Kh8
{[%clk 0:00:11.6]} 69. Qg7# {[%clk 0:00:11.6]} 1-0

[Event "Late-Titled-Tuesday-Blitz-May-14-2024"]
[Site "Chess.com"]
[Date "2024.05.14"]
[Round "11"]
[White "Rsnr"]
[Black "FairChess_on_YouTube"]
[Result "0-1"]
[WhiteElo "2908"]
[BlackElo "3078"]
[TimeControl "180+1"]
[EndTime "16:04:51 PDT"]
[Termination "FairChess_on_YouTube won on time"]

1. d4 {[%clk 0:03:00.9]} 1... Nf6 {[%clk 0:02:59.4]} 2. c4 {[%clk 0:03:01.1]}
2... c5 {[%clk 0:02:59.7]} 3. d5 {[%clk 0:03:01]} 3... b5 {[%clk 0:03:00.3]} 4.
cxb5 {[%clk 0:03:01.2]} 4... a6 {[%clk 0:03:01]} 5. e3 {[%clk 0:03:01.7]} 5...
g6 {[%clk 0:03:00.3]} 6. Nc3 {[%clk 0:03:01.3]} 6... Bg7 {[%clk 0:03:00.9]} 7.
a4 {[%clk 0:03:01.7]} 7... O-O {[%clk 0:03:01]} 8. e4 {[%clk 0:03:02.2]} 8... d6
{[%clk 0:02:59.6]} 9. Nf3 {[%clk 0:02:58.5]} 9... Bd7 {[%clk 0:02:58.1]} 10. Bd2
{[%clk 0:02:55.1]} 10... Bg4 {[%clk 0:02:57.4]} 11. Be2 {[%clk 0:02:45.8]} 11...
axb5 {[%clk 0:02:52.5]} 12. axb5 {[%clk 0:02:45.6]} 12... Nbd7 {[%clk
0:02:52.8]} 13. O-O {[%clk 0:02:45.5]} 13... Qb6 {[%clk 0:02:51.6]} 14. Qc2
{[%clk 0:02:32.3]} 14... Rfb8 {[%clk 0:02:48.5]} 15. h3 {[%clk 0:02:22.7]} 15...
Bxf3 {[%clk 0:02:48.1]} 16. Bxf3 {[%clk 0:02:23.6]} 16... Ne8 {[%clk 0:02:48.2]}
17. Be2 {[%clk 0:02:23.5]} 17... Nc7 {[%clk 0:02:48.3]} 18. Rxa8 {[%clk
0:01:55.5]} 18... Rxa8 {[%clk 0:02:48.2]} 19. Rb1 {[%clk 0:01:56.1]} 19... h5
{[%clk 0:02:45.7]} 20. b4 {[%clk 0:01:25.5]} 20... Bd4 {[%clk 0:02:40.8]} 21.
Be1 {[%clk 0:01:14.3]} 21... Qa7 {[%clk 0:02:26]} 22. bxc5 {[%clk 0:01:08.9]}
22... Qxc5 {[%clk 0:02:25]} 23. b6 {[%clk 0:00:54.5]} 23... Nxb6 {[%clk
0:02:23.2]} 24. Qc1 {[%clk 0:00:41.1]} 24... Nd7 {[%clk 0:02:11.7]} 25. Nb5
{[%clk 0:00:40.3]} 25... Nxb5 {[%clk 0:02:04.7]} 26. Bxb5 {[%clk 0:00:39.7]}
26... Nf6 {[%clk 0:02:02.1]} 27. Qxc5 {[%clk 0:00:33.1]} 27... Bxc5 {[%clk
0:02:03]} 28. Bd3 {[%clk 0:00:32.2]} 28... Ra4 {[%clk 0:02:02.8]} 29. Rb7 {[%clk
0:00:26.2]} 29... Kf8 {[%clk 0:01:42.9]} 30. Rb8+ {[%clk 0:00:26.7]} 30... Kg7
{[%clk 0:01:43.3]} 31. Rb7 {[%clk 0:00:27.3]} 31... h4 {[%clk 0:01:36.9]} 32.
Kf1 {[%clk 0:00:26.6]} 32... Kf8 {[%clk 0:01:36.3]} 33. Rb8+ {[%clk 0:00:26.9]}
33... Kg7 {[%clk 0:01:36.8]} 34. Rb7 {[%clk 0:00:27.6]} 34... Nxe4 {[%clk
0:01:34.9]} 35. Rxe7 {[%clk 0:00:27.8]} 35... Nf6 {[%clk 0:01:34.9]} 36. Bb5
{[%clk 0:00:24.8]} 36... Ra1 {[%clk 0:01:32.1]} 37. Bc6 {[%clk 0:00:21.8]} 37...
Bb4 {[%clk 0:01:29]} 38. f3 {[%clk 0:00:20.5]} 38... Nh5 {[%clk 0:01:25.5]} 39.
Kf2 {[%clk 0:00:19]} 39... Rxe1 {[%clk 0:01:25.3]} 40. Rxe1 {[%clk 0:00:19.9]}
40... Bxe1+ {[%clk 0:01:25.6]} 41. Kxe1 {[%clk 0:00:20.8]} 41... f5 {[%clk
0:01:16.7]} 42. Kf2 {[%clk 0:00:20.1]} 42... Kf6 {[%clk 0:01:17]} 43. Be8 {[%clk
0:00:16.5]} 43... Nf4 {[%clk 0:01:14.1]} 44. g3 {[%clk 0:00:16.2]} 44... hxg3+
{[%clk 0:00:58.5]} 45. Kxg3 {[%clk 0:00:17.1]} 45... Nxd5 {[%clk 0:00:55.5]} 46.
f4 {[%clk 0:00:17.6]} 46... Nb4 {[%clk 0:00:54.1]} 47. Kf3 {[%clk 0:00:17]}
47... Nc2 {[%clk 0:00:51.8]} 48. h4 {[%clk 0:00:16.9]} 48... Nd4+ {[%clk
0:00:51.8]} 49. Ke3 {[%clk 0:00:17.1]} 49... Ne6 {[%clk 0:00:51.8]} 50. Bc6
{[%clk 0:00:13.9]} 50... Kg7 {[%clk 0:00:49.2]} 51. Bd7 {[%clk 0:00:13.1]} 51...
Nc5 {[%clk 0:00:48.9]} 52. Bc6 {[%clk 0:00:04.6]} 52... Kh6 {[%clk 0:00:49.3]}
53. Kf3 {[%clk 0:00:05.3]} 53... Kh5 {[%clk 0:00:41.8]} 54. Be8 {[%clk
0:00:05.7]} 54... Ne4 {[%clk 0:00:34.3]} 55. Bf7 {[%clk 0:00:05.1]} 55... Nc3
{[%clk 0:00:32.4]} 56. Ke3 {[%clk 0:00:04]} 56... Ne4 {[%clk 0:00:31.5]} 57. Kf3
{[%clk 0:00:04.5]} 57... Nf6 {[%clk 0:00:31.9]} 58. Kg3 {[%clk 0:00:04.8]} 58...
d5 {[%clk 0:00:31.4]} 59. Kf3 {[%clk 0:00:04.9]} 59... d4 {[%clk 0:00:32.1]} 60.
Kg3 {[%clk 0:00:03.5]} 60... d3 {[%clk 0:00:28.1]} 61. Kf3 {[%clk 0:00:03.9]}
61... Ng4 {[%clk 0:00:28.5]} 62. Bc4 {[%clk 0:00:02.9]} 62... d2 {[%clk
0:00:26.4]} 63. Ke2 {[%clk 0:00:03.4]} 63... d1=Q+ {[%clk 0:00:24.2]} 0-1

[Event "Late-Titled-Tuesday-Blitz-May-14-2024"]
[Site "Chess.com"]
[Date "2024.05.14"]
[Round "11"]
[White "FaustinoOro"]
[Black "Grischuk"]
[Result "0-1"]
[WhiteElo "2919"]
[BlackElo "3112"]
[TimeControl "180+1"]
[EndTime "16:04:51 PDT"]
[Termination "Grischuk won by resignation"]

1. e4 {[%clk 0:03:00.9]} 1... e5 {[%clk 0:02:59.7]} 2. Nf3 {[%clk 0:03:00.9]}
2... Nc6 {[%clk 0:03:00.4]} 3. Bb5 {[%clk 0:03:01.4]} 3... a6 {[%clk 0:02:59.8]}
4. Ba4 {[%clk 0:03:01.9]} 4... Nge7 {[%clk 0:02:59.3]} 5. O-O {[%clk 0:02:59.4]}
5... Ng6 {[%clk 0:02:58.5]} 6. c3 {[%clk 0:02:58.5]} 6... d5 {[%clk 0:02:56.9]}
7. exd5 {[%clk 0:02:50.3]} 7... Qxd5 {[%clk 0:02:57]} 8. Bb3 {[%clk 0:02:38.6]}
8... Qd3 {[%clk 0:02:44.9]} 9. Bc2 {[%clk 0:02:31.3]} 9... Qd6 {[%clk
0:02:39.2]} 10. h3 {[%clk 0:02:29.1]} 10... Be7 {[%clk 0:02:36.9]} 11. d4 {[%clk
0:02:27.6]} 11... exd4 {[%clk 0:02:36.1]} 12. cxd4 {[%clk 0:02:27.3]} 12... Be6
{[%clk 0:02:25.8]} 13. Nc3 {[%clk 0:02:23.2]} 13... Rd8 {[%clk 0:02:26.3]} 14.
Be3 {[%clk 0:02:17.9]} 14... O-O {[%clk 0:02:24.2]} 15. Re1 {[%clk 0:02:11]}
15... Nb4 {[%clk 0:02:17]} 16. Bb3 {[%clk 0:02:05.3]} 16... Nd5 {[%clk
0:02:00.5]} 17. Bd2 {[%clk 0:01:52]} 17... h6 {[%clk 0:01:54]} 18. Rc1 {[%clk
0:01:48.7]} 18... c6 {[%clk 0:01:50]} 19. Ne4 {[%clk 0:01:47.5]} 19... Qd7
{[%clk 0:01:49.8]} 20. Nc5 {[%clk 0:01:04.2]} 20... Bxc5 {[%clk 0:01:49.7]} 21.
dxc5 {[%clk 0:01:05.1]} 21... Ndf4 {[%clk 0:01:35.5]} 22. Bxf4 {[%clk
0:00:59.9]} 22... Nxf4 {[%clk 0:01:33]} 23. Bxe6 {[%clk 0:00:57.6]} 23... Nxe6
{[%clk 0:01:29.8]} 24. Qb3 {[%clk 0:00:57.1]} 24... Qc7 {[%clk 0:01:24.1]} 25.
Qc3 {[%clk 0:00:56.5]} 25... Rd5 {[%clk 0:01:23]} 26. b4 {[%clk 0:00:56.6]}
26... Rfd8 {[%clk 0:01:22.9]} 27. Ne5 {[%clk 0:00:55.8]} 27... Nf4 {[%clk
0:00:53.6]} 28. Rc2 {[%clk 0:00:29.4]} 28... Rd1 {[%clk 0:00:41.6]} 29. Nf3
{[%clk 0:00:26.2]} 29... Qe7 {[%clk 0:00:32.7]} 30. Rxd1 {[%clk 0:00:20.8]}
30... Rxd1+ {[%clk 0:00:33.6]} 31. Kh2 {[%clk 0:00:21.5]} 31... Nd5 {[%clk
0:00:26.8]} 32. Qc4 {[%clk 0:00:18.8]} 32... Qf6 {[%clk 0:00:16.1]} 33. Qe4
{[%clk 0:00:17.1]} 33... g6 {[%clk 0:00:15.1]} 34. a4 {[%clk 0:00:12.8]} 34...
Kg7 {[%clk 0:00:14.2]} 35. Rc4 {[%clk 0:00:09.3]} 35... Ra1 {[%clk 0:00:08.3]}
36. b5 {[%clk 0:00:07.4]} 36... axb5 {[%clk 0:00:06.9]} 37. axb5 {[%clk
0:00:07.9]} 37... Nc3 {[%clk 0:00:04]} 38. Qe3 {[%clk 0:00:06.1]} 38... Nd5
{[%clk 0:00:03.5]} 39. Qe4 {[%clk 0:00:05.4]} 39... Ra2 {[%clk 0:00:03.2]} 40.
bxc6 {[%clk 0:00:04.4]} 40... bxc6 {[%clk 0:00:04.1]} 41. Qe1 {[%clk 0:00:03]}
41... Qf5 {[%clk 0:00:02.9]} 42. Re4 {[%clk 0:00:03.5]} 42... Qf6 {[%clk
0:00:02.9]} 43. Re5 {[%clk 0:00:03.7]} 43... Rc2 {[%clk 0:00:02.5]} 44. Qe4
{[%clk 0:00:03.5]} 44... Rxf2 {[%clk 0:00:02.2]} 45. Re8 {[%clk 0:00:01.8]}
45... Nf4 {[%clk 0:00:01.5]} 46. Ne1 {[%clk 0:00:01.4]} 46... Re2 {[%clk
0:00:01.7]} 47. Qf3 {[%clk 0:00:01.1]} 47... Rxe8 {[%clk 0:00:01.3]} 48. Nd3
{[%clk 0:00:02]} 48... Re6 {[%clk 0:00:01.8]} 49. Nxf4 {[%clk 0:00:02.3]} 49...
Re5 {[%clk 0:00:02.4]} 50. Qg3 {[%clk 0:00:02.8]} 50... Rg5 {[%clk 0:00:02.5]}
51. Qe3 {[%clk 0:00:03.4]} 51... Qe5 {[%clk 0:00:02.6]} 52. Qf2 {[%clk
0:00:03.9]} 52... Rf5 {[%clk 0:00:02.7]} 53. g3 {[%clk 0:00:04.7]} 53... g5
{[%clk 0:00:02.7]} 54. Nh5+ {[%clk 0:00:05.4]} 54... Kg6 {[%clk 0:00:03.1]} 55.
Qc2 {[%clk 0:00:06.1]} 55... Qxc5 {[%clk 0:00:03]} 56. Qe4 {[%clk 0:00:03.6]}
56... Qf2+ {[%clk 0:00:03.1]} 57. Kh1 {[%clk 0:00:04.2]} 57... Qf1+ {[%clk
0:00:03.6]} 58. Kh2 {[%clk 0:00:04.8]} 58... Qf2+ {[%clk 0:00:04.2]} 59. Kh1
{[%clk 0:00:05.5]} 59... Qf3+ {[%clk 0:00:04.7]} 60. Qxf3 {[%clk 0:00:05.8]}
60... Rxf3 {[%clk 0:00:05.6]} 0-1

[Event "Late-Titled-Tuesday-Blitz-May-14-2024"]
[Site "Chess.com"]
[Date "2024.05.14"]
[Round "11"]
[White "protectiago"]
[Black "if_name_main_a"]
[Result "1-0"]
[WhiteElo "2097"]
[BlackElo "2418"]
[TimeControl "180+1"]
[EndTime "16:05:02 PDT"]
[Termination "protectiago won by checkmate"]

1. d4 {[%clk 0:02:59.5]} 1... g6 {[%clk 0:02:53]} 2. c4 {[%clk 0:02:58.3]} 2...
Bg7 {[%clk 0:02:51]} 3. Nf3 {[%clk 0:02:55.7]} 3... d6 {[%clk 0:02:51.3]} 4. e4
{[%clk 0:02:52.5]} 4... Nc6 {[%clk 0:02:51.6]} 5. Be2 {[%clk 0:02:47.2]} 5... e5
{[%clk 0:02:51.9]} 6. d5 {[%clk 0:02:40.4]} 6... Nce7 {[%clk 0:02:52.4]} 7. Nc3
{[%clk 0:02:30.1]} 7... f5 {[%clk 0:02:51.7]} 8. O-O {[%clk 0:01:59]} 8... Nf6
{[%clk 0:02:46.9]} 9. Ng5 {[%clk 0:01:32.7]} 9... h6 {[%clk 0:02:43.7]} 10. Ne6
{[%clk 0:01:31.5]} 10... Bxe6 {[%clk 0:02:42.5]} 11. dxe6 {[%clk 0:01:32.4]}
11... f4 {[%clk 0:01:48.8]} 12. Nd5 {[%clk 0:00:54.1]} 12... Nc6 {[%clk
0:01:45.1]} 13. Qa4 {[%clk 0:00:44]} 13... O-O {[%clk 0:01:36.9]} 14. b4 {[%clk
0:00:31.4]} 14... Re8 {[%clk 0:01:20.9]} 15. b5 {[%clk 0:00:27.9]} 15... Nd4
{[%clk 0:01:20.5]} 16. Bd3 {[%clk 0:00:16]} 16... Rxe6 {[%clk 0:01:12.1]} 17. f3
{[%clk 0:00:16.3]} 17... Nd7 {[%clk 0:01:04.7]} 18. Bb2 {[%clk 0:00:14.8]} 18...
Nc5 {[%clk 0:01:04]} 19. Qd1 {[%clk 0:00:15.4]} 19... g5 {[%clk 0:00:58.9]} 20.
Rc1 {[%clk 0:00:14.6]} 20... h5 {[%clk 0:00:56.8]} 21. Bb1 {[%clk 0:00:13.2]}
21... Rg6 {[%clk 0:00:55]} 22. Kh1 {[%clk 0:00:10.3]} 22... g4 {[%clk
0:00:53.9]} 23. fxg4 {[%clk 0:00:10.2]} 23... hxg4 {[%clk 0:00:54.8]} 24. Bxd4
{[%clk 0:00:09.1]} 24... Qh4 {[%clk 0:00:51.1]} 25. Bf2 {[%clk 0:00:07.6]} 25...
g3 {[%clk 0:00:49.9]} 26. Bg1 {[%clk 0:00:07.3]} 26... gxh2 {[%clk 0:00:47.5]}
27. Bf2 {[%clk 0:00:07.2]} 27... Qg5 {[%clk 0:00:29.2]} 28. Qf3 {[%clk
0:00:06.4]} 28... Ne6 {[%clk 0:00:29.5]} 29. Rc3 {[%clk 0:00:05.4]} 29... Kf7
{[%clk 0:00:29.7]} 30. Qh3 {[%clk 0:00:05.1]} 30... Rh8 {[%clk 0:00:29.6]} 31.
Qf5+ {[%clk 0:00:04.9]} 31... Ke8 {[%clk 0:00:26.7]} 32. Qxg5 {[%clk 0:00:04.2]}
32... Rxg5 {[%clk 0:00:27.6]} 33. Rf3 {[%clk 0:00:03.6]} 33... Kd7 {[%clk
0:00:27.2]} 34. Rh3 {[%clk 0:00:03.8]} 34... c6 {[%clk 0:00:23]} 35. Rxh2 {[%clk
0:00:03.7]} 35... Rxh2+ {[%clk 0:00:21.2]} 36. Kxh2 {[%clk 0:00:04]} 36... cxd5
{[%clk 0:00:22.1]} 37. cxd5 {[%clk 0:00:04.4]} 37... Nc7 {[%clk 0:00:22.1]} 38.
Bxa7 {[%clk 0:00:04.3]} 38... Nxb5 {[%clk 0:00:22.4]} 39. Bb6 {[%clk 0:00:04.3]}
39... Nc3 {[%clk 0:00:22.6]} 40. Bd3 {[%clk 0:00:04.1]} 40... Bf6 {[%clk
0:00:19.7]} 41. Ba5 {[%clk 0:00:04.2]} 41... Na4 {[%clk 0:00:18.4]} 42. Bb5+
{[%clk 0:00:03.5]} 42... Ke7 {[%clk 0:00:18.8]} 43. Bxa4 {[%clk 0:00:03.9]}
43... Rh5+ {[%clk 0:00:19.3]} 44. Kg1 {[%clk 0:00:04.3]} 44... Bg5 {[%clk
0:00:19.8]} 45. Rc1 {[%clk 0:00:04.1]} 45... f3 {[%clk 0:00:20.3]} 46. Rc7+
{[%clk 0:00:04.2]} 46... Kf6 {[%clk 0:00:20.6]} 47. gxf3 {[%clk 0:00:04.8]}
47... Be3+ {[%clk 0:00:21.2]} 48. Kg2 {[%clk 0:00:05.1]} 48... Kg5 {[%clk
0:00:21.7]} 49. Be1 {[%clk 0:00:05.2]} 49... Kf4 {[%clk 0:00:20.6]} 50. Rf7+
{[%clk 0:00:05.2]} 50... Kg5 {[%clk 0:00:20.6]} 51. Rf5+ {[%clk 0:00:05.5]}
51... Kg6 {[%clk 0:00:20.6]} 52. Be8+ {[%clk 0:00:04.8]} 52... Kg7 {[%clk
0:00:19.9]} 53. Bxh5 {[%clk 0:00:04.9]} 53... Bf4 {[%clk 0:00:20.8]} 54. Bg4
{[%clk 0:00:05.1]} 54... Kh6 {[%clk 0:00:20.8]} 55. Bg3 {[%clk 0:00:04.7]} 55...
Kg6 {[%clk 0:00:21.7]} 56. Bxf4 {[%clk 0:00:04.9]} 56... exf4 {[%clk 0:00:22.6]}
57. Rxf4 {[%clk 0:00:05.4]} 57... Kg5 {[%clk 0:00:23.5]} 58. Rf5+ {[%clk
0:00:05.6]} 58... Kh4 {[%clk 0:00:24.4]} 59. Rf8 {[%clk 0:00:06]} 59... b5
{[%clk 0:00:24.4]} 60. Rb8 {[%clk 0:00:06.6]} 60... Kg5 {[%clk 0:00:25.1]} 61.
Rxb5 {[%clk 0:00:07.1]} 61... Kf4 {[%clk 0:00:26]} 62. Rb6 {[%clk 0:00:07.6]}
62... Ke3 {[%clk 0:00:26.9]} 63. Rxd6 {[%clk 0:00:07.8]} 63... Kf4 {[%clk
0:00:27.8]} 64. Re6 {[%clk 0:00:08.3]} 64... Ke3 {[%clk 0:00:28.7]} 65. d6
{[%clk 0:00:08.6]} 65... Ke2 {[%clk 0:00:29.6]} 66. d7 {[%clk 0:00:09.1]} 66...
Ke3 {[%clk 0:00:30.5]} 67. d8=Q {[%clk 0:00:07.9]} 67... Ke2 {[%clk 0:00:31.4]}
68. Qe8 {[%clk 0:00:07.7]} 68... Ke3 {[%clk 0:00:30.5]} 69. Qb5 {[%clk
0:00:07.9]} 69... Kf4 {[%clk 0:00:29.9]} 70. Qf5+ {[%clk 0:00:07.6]} 70... Ke3
{[%clk 0:00:30.8]} 71. Qg5+ {[%clk 0:00:08.3]} 71... Ke2 {[%clk 0:00:31.3]} 72.
f4+ {[%clk 0:00:08.4]} 72... Ke1 {[%clk 0:00:32.2]} 73. Qh4+ {[%clk 0:00:07.6]}
73... Kd2 {[%clk 0:00:33.1]} 74. Rd6+ {[%clk 0:00:07.4]} 74... Ke3 {[%clk
0:00:34]} 75. Qg3+ {[%clk 0:00:07.1]} 75... Kxe4 {[%clk 0:00:34.3]} 76. Qf3#
{[%clk 0:00:06.9]} 1-0